fUST/lending_fUST_20251111
["ID","MTS","AMOUNT","RATE_DAILY","PERIOD"]
[393551767,1762792283288,-303.09393717,0.00024772,2]
[393551768,1762792283298,-1107.03,0.0002479,3]
[393551769,1762792283308,-700.47,0.0002479,3]
[393551770,1762792283318,-350.24,0.0002479,3]
[393551771,1762792283329,-175.12,0.0002479,3]
[393551772,1762792283340,-875.61,0.0002479,3]
[393551773,1762792283351,-500.0,0.00024799,2]
[393551774,1762792283362,-500.0,0.00024799,2]
[393551775,1762792283372,-500.0,0.00024799,2]
[393551776,1762792283383,-454.75459217,0.00024799,2]
[393551777,1762792283394,-405317.04741593,0.000248,2]
[393551778,1762792283408,-3428.37642227,0.000248,2]
[393551779,1762792283420,-873.65178104,0.000248,2]
[393551780,1762792283432,-1214.30414895,0.000248,2]
[393551781,1762792283445,-41194.27490679,0.000248,2]
[393551782,1762792283554,200.0,0.0003,120]
[393551783,1762792283586,200.0,0.000317,120]
[393551784,1762792285304,-890.15205145,0.000248,2]
[393551785,1762792285317,-281.00478041,0.000248,2]
[393551786,1762792285328,-401.2941972,0.000248,2]
[393551787,1762792285340,-266.9869136,0.000248,2]
[393551788,1762792285351,-291.300155,0.000248,2]
[393551789,1762792285362,-338.84055212,0.000248,2]
[393551790,1762792285374,-5593.38452007,0.000248,2]
[393551791,1762792285385,-27501.08088253,0.000248,2]
[393551792,1762792285396,-16844.9999999,0.000248,2]
[393551793,1762792285426,-741.43,0.000248,2]
[393551794,1762792285436,-429.42624312,0.000248,2]
[393551795,1762792285448,-16488.49823964,0.000248,2]
[393551796,1762792285467,-250.94992914,0.000248,2]
[393551797,1762792285478,-30109.43775027,0.000248,2]
[393551798,1762792285498,-864.18111918,0.000248,2]
[393551799,1762792285572,-35238.57895575,0.000248,2]
[393551800,1762792285692,300.0,0.00014999,2]
[393551801,1762792285732,502.57909478,0.00019083,2]
[393551802,1762792285762,500.0,0.00019883,2]
[393551803,1762792285791,50000.0,0.00019873,2]
[393551807,1762792304880,1000.0,0.00031,120]
[393551813,1762792308179,197.61039512,0.000328,120]
[393551814,1762792324096,500.0,0.00019873,2]
[393551816,1762792324665,500.0,0.00019873,2]
[393551817,1762792328570,500.0,0.00019873,2]
[393551818,1762792329120,411.44609935,0.00019873,2]
[393551819,1762792329188,186.50777453,0.000328,120]
[393551823,1762792331210,184.02186877,0.000328,120]
[393551825,1762792332178,166.59780374,0.000328,120]
[393551842,1762792336608,170.43767339,0.000328,120]
[393551854,1762792340490,195.22719064,0.000328,120]
[393551871,1762792354970,184.67994437,0.000328,120]
[393551872,1762792356308,194.63243766,0.000328,120]
[393551873,1762792360219,844.0,0.00032877,120]
[393551895,1762792404080,186.10225414,0.000328,120]
[393551903,1762792440586,176.63571678,0.000328,120]
[393551905,1762792461517,397.02903419,0.000328,120]
[393551912,1762792492809,918.62734268,0.000328,120]
[393551917,1762792516561,165.64376316,0.00037066,120]
[393551918,1762792518116,223.80086556,0.00032876,120]
[393551919,1762792533403,486.0,0.00025107,120]
[393551920,1762792534685,486.0,0.00026362,120]
[393551921,1762792535922,486.0,0.0002768,120]
[393551922,1762792537245,486.0,0.00029064,120]
[393551923,1762792538574,486.0,0.00030517,120]
[393551925,1762792539844,486.0,0.00032043,120]
[393551936,1762792566847,180.0,0.000328,120]
[393551937,1762792569204,180.0,0.000328,120]
[393551938,1762792571652,180.0,0.000328,120]
[393551939,1762792574012,269.5970034,0.000328,120]
[393551940,1762792582745,200.0,0.00037066,30]
[393551943,1762792622986,197.61039512,0.000328,120]
[393551945,1762792630991,329.624,0.00037066,20]
[393551960,1762792642526,186.50777452,0.000328,120]
[393551962,1762792660163,195.22719064,0.000328,120]
[393551963,1762792662838,173.61,0.0001866,2]
[393551964,1762792671218,184.67994437,0.000328,120]
[393551965,1762792671522,194.63243766,0.000328,120]
[393551969,1762792720823,186.10225415,0.000328,120]
[393551971,1762792754206,176.63571678,0.000328,120]
[393551975,1762792766883,150.0,0.00037063,20]
[393551976,1762792772319,150.0,0.00037063,20]
[393551977,1762792778488,150.0,0.00037063,20]
[393551978,1762792781029,317.62322735,0.000328,120]
[393551979,1762792784817,185.09369,0.00037063,120]
[393551987,1762792808489,734.90187414,0.000328,120]
[393551994,1762792832660,906.4778728,0.00032877,120]
[393551995,1762792835306,194.0,0.00025167,120]
[393551996,1762792836855,194.0,0.00026425,120]
[393551997,1762792838186,194.0,0.00027746,120]
[393551998,1762792839641,194.0,0.00029134,120]
[393551999,1762792841049,194.0,0.0003059,120]
[393552000,1762792842417,194.0,0.0003212,120]
[393552004,1762792881151,200.0,0.00037063,30]
[393552008,1762792940261,197.61039512,0.000328,120]
[393552021,1762792958780,186.50777453,0.000328,120]
[393552022,1762792974606,195.22719064,0.000328,120]
[393552023,1762792984840,194.63243765,0.000328,120]
[393552024,1762792985952,184.67994437,0.000328,120]
[393552026,1762793034711,186.10225414,0.000328,120]
[393552030,1762793068592,176.63571678,0.000328,120]
[393552031,1762793096896,254.09858188,0.000328,120]
[393552036,1762793123608,587.92149932,0.000328,120]
[393552045,1762793132329,195.0,0.00025507,120]
[393552047,1762793133641,195.0,0.00026782,120]
[393552051,1762793135804,195.0,0.00028121,120]
[393552054,1762793137190,195.0,0.00029527,120]
[393552068,1762793182021,200.0,0.00037063,30]
[393552076,1762793196129,5000.0,0.00019616,4]
[393552083,1762793218397,5000.0,0.00019616,4]
[393552085,1762793234120,-229.8955398,0.00019089,2]
[393552086,1762793234140,-153.06391225,0.00019194,2]
[393552087,1762793234159,-371.62587373,0.000192,2]
[393552107,1762793248083,-4198.2108388,0.00019008,2]
[393552110,1762793258885,197.61039512,0.000328,120]
[393552116,1762793270259,4596.23,0.0001866,2]
[393552120,1762793288893,195.22719065,0.000328,120]
[393552121,1762793299443,184.67994438,0.000328,120]
[393552128,1762793348476,186.10225415,0.000328,120]
[393552130,1762793369149,-801.7891612,0.00019008,2]
[393552131,1762793369169,-22.38479874,0.000192,2]
[393552132,1762793369188,-2409.87,0.0001988,2]
[393552133,1762793369208,-2162.69844006,0.00019881,2]
[393552135,1762793381861,176.63571678,0.000328,120]
[393552139,1762793411124,203.2788655,0.000328,120]
[393552163,1762793432638,-247.17155994,0.00019881,2]
[393552164,1762793432659,-142.90322734,0.00020478,2]
[393552166,1762793432690,-7.09940666,0.00020478,2]
[393552167,1762793432700,-1200.0,0.00021074,2]
[393552168,1762793432709,-403.9203302,0.00021075,2]
[393552169,1762793432720,-796.0796698,0.00021075,2]
[393552170,1762793432730,-300.0,0.00021075,2]
[393552171,1762793432739,-300.0,0.00021075,2]
[393552172,1762793432748,-300.0,0.00021075,2]
[393552174,1762793432757,-300.0,0.00021075,2]
[393552176,1762793432766,-300.0,0.00021075,2]
[393552178,1762793432777,-2409.87,0.00021081,2]
[393552179,1762793432787,-500.0,0.00021267,2]
[393552180,1762793432796,-500.0,0.0002135,2]
[393552181,1762793432805,-505.79762792,0.0002135,2]
[393552182,1762793432815,-500.0,0.0002135,2]
[393552183,1762793432824,-503.89883739,0.0002144,2]
[393552184,1762793432833,-500.0,0.00021475,2]
[393552185,1762793432842,-500.0,0.00021567,2]
[393552186,1762793432851,-500.0,0.00021567,2]
[393552187,1762793432861,-532.47549798,0.00021567,2]
[393552188,1762793432870,-426.07856633,0.00021567,2]
[393552189,1762793432880,-500.0,0.00021567,2]
[393552190,1762793432890,-239.655094,0.00021729,2]
[393552191,1762793432899,-287.64449354,0.00021898,2]
[393552192,1762793432908,-1000.0,0.00022023,2]
[393552193,1762793432918,-610.29127044,0.00022115,2]
[393552194,1762793432927,-500.0,0.00022115,2]
[393552195,1762793432937,-500.0,0.00022384,2]
[393552196,1762793432946,-177.00310812,0.00022478,2]
[393552197,1762793432955,-402.0,0.00022923,2]
[393552198,1762793432964,-399.99776637,0.00022956,2]
[393552199,1762793432974,-1200.0,0.00023031,2]
[393552200,1762793432984,-265.72100682,0.00024,3]
[393552201,1762793432993,-204.00358224,0.00024478,2]
[393552202,1762793433003,-1912.46736632,0.0002448,2]
[393552203,1762793433012,-4008.54357947,0.00024498,2]
[393552204,1762793433022,-177.07389412,0.00024573,2]
[393552205,1762793433031,-177.0738941,0.00024587,2]
[393552206,1762793433040,-500.0,0.00024597,2]
[393552207,1762793433050,-500.0,0.00024597,2]
[393552208,1762793433059,-500.0,0.00024597,2]
[393552209,1762793433069,-500.0,0.00024597,2]
[393552210,1762793433078,-500.0,0.00024597,2]
[393552211,1762793433087,-500.0,0.00024597,2]
[393552212,1762793433097,-500.0,0.00024597,2]
[393552213,1762793433106,-500.0,0.00024597,2]
[393552214,1762793433115,-500.0,0.00024597,2]
[393552215,1762793433125,-500.0,0.00024597,2]
[393552216,1762793433134,-500.0,0.00024597,2]
[393552217,1762793433145,-500.0,0.00024597,2]
[393552218,1762793433154,-500.0,0.00024597,2]
[393552219,1762793433164,-500.0,0.00024597,2]
[393552220,1762793433173,-500.0,0.00024597,2]
[393552221,1762793433182,-500.0,0.00024597,2]
[393552222,1762793433192,-500.0,0.00024597,2]
[393552223,1762793433201,-281.81575995,0.00024597,2]
[393552224,1762793433211,-500.0,0.00024597,2]
[393552225,1762793433220,-500.0,0.00024597,2]
[393552226,1762793433230,-500.0,0.00024597,2]
[393552227,1762793433241,-500.0,0.00024597,2]
[393552228,1762793433253,-500.0,0.00024597,2]
[393552229,1762793433263,-500.0,0.00024597,2]
[393552230,1762793433272,-500.0,0.00024597,2]
[393552231,1762793433283,-500.0,0.00024597,2]
[393552232,1762793433292,-500.0,0.00024597,2]
[393552233,1762793433302,-500.0,0.00024597,2]
[393552234,1762793433311,-514.84339343,0.00024597,2]
[393552235,1762793433322,-578.36714797,0.00024597,2]
[393552236,1762793433332,-500.0,0.00024597,2]
[393552237,1762793433342,-500.0,0.00024597,2]
[393552238,1762793433352,-500.0,0.00024597,2]
[393552239,1762793433362,-500.0,0.00024597,2]
[393552240,1762793433372,-500.0,0.00024597,2]
[393552241,1762793433381,-500.0,0.00024597,2]
[393552242,1762793433393,-500.0,0.00024597,2]
[393552243,1762793433403,-500.0,0.00024597,2]
[393552244,1762793433412,-500.0,0.00024597,2]
[393552245,1762793433422,-500.0,0.00024597,2]
[393552246,1762793433433,-500.0,0.00024597,2]
[393552247,1762793433443,-500.0,0.00024597,2]
[393552248,1762793433452,-500.0,0.00024597,2]
[393552249,1762793433462,-500.0,0.00024597,2]
[393552250,1762793433472,-500.0,0.00024597,2]
[393552251,1762793433483,-500.0,0.00024597,2]
[393552252,1762793433494,-500.0,0.00024597,2]
[393552253,1762793433505,-500.0,0.00024597,2]
[393552254,1762793433515,-500.0,0.00024597,2]
[393552255,1762793433525,-500.0,0.00024599,2]
[393552256,1762793433537,-177.0738941,0.000246,2]
[393552257,1762793433547,-884.08725829,0.000246,2]
[393552258,1762793433557,-2017.05806259,0.00024651,2]
[393552259,1762793433567,-500.0,0.00024673,2]
[393552260,1762793433576,-576.29415026,0.00024673,2]
[393552261,1762793433587,-500.0,0.00024673,2]
[393552262,1762793433597,-500.0,0.00024673,2]
[393552263,1762793433607,-501.53688474,0.00024673,2]
[393552264,1762793433616,-500.0,0.00024673,2]
[393552265,1762793433626,-500.0,0.00024673,2]
[393552266,1762793433635,-500.0,0.00024673,2]
[393552267,1762793433647,-500.0,0.00024673,2]
[393552268,1762793433656,-1591.02,0.0002469,3]
[393552269,1762793433665,-795.51,0.0002469,3]
[393552270,1762793433675,-397.75,0.0002469,3]
[393552271,1762793433684,-198.88,0.0002469,3]
[393552272,1762793433694,-596.66,0.0002469,3]
[393552273,1762793433703,-415.01,0.0002469,10]
[393552274,1762793433712,-273.92999475,0.00024699,2]
[393552275,1762793433722,-500.0,0.00024699,2]
[393552276,1762793433731,-500.0,0.00024699,2]
[393552277,1762793433740,-500.0,0.00024699,2]
[393552278,1762793433749,-500.0,0.00024699,2]
[393552279,1762793433759,-500.0,0.00024699,2]
[393552280,1762793433768,-500.0,0.00024699,2]
[393552281,1762793433777,-528636.9828124,0.000247,2]
[393552287,1762793438477,-500.0,0.00024597,2]
[393552288,1762793438487,-151.08194052,0.00024597,2]
[393552289,1762793438499,-348.91805948,0.00024597,2]
[393552290,1762793438510,-120.54754961,0.00024597,2]
[393552306,1762793442980,470.33719945,0.000328,120]
[393552355,1762793446961,-83.84281398,0.00024597,2]
[393552356,1762793446973,-295.60963641,0.00024597,2]
[393552357,1762793446983,-159.66581878,0.00024597,2]
[393552358,1762793446992,-791.4,0.0002469,10]
[393552359,1762793447001,-248363.0171876,0.000247,2]
[393552360,1762793447010,-200.35,0.000247,2]
[393552361,1762793447019,-169.44273383,0.0002475,2]
[393552362,1762793447029,-258.2583991,0.0002475,2]
[393552363,1762793447038,-396.87627817,0.0002475,2]
[393552364,1762793447047,-500.0,0.00024773,2]
[393552365,1762793447058,-500.0,0.00024773,2]
[393552366,1762793447067,-500.0,0.00024773,2]
[393552367,1762793447076,-500.0,0.00024773,2]
[393552368,1762793447085,-245.57280145,0.00024773,2]
[393552369,1762793447095,-626.70170652,0.00024773,2]
[393552370,1762793447104,-500.0,0.00024773,2]
[393552371,1762793447113,-500.0,0.00024773,2]
[393552373,1762793447123,-500.0,0.00024773,2]
[393552375,1762793447132,-500.0,0.00024773,2]
[393552377,1762793447141,-506.98725193,0.00024773,2]
[393552379,1762793447151,-500.0,0.00024773,2]
[393552381,1762793447160,-604.94498007,0.00024773,2]
[393552383,1762793447170,-777.22,0.0002479,3]
[393552385,1762793447179,-2409.87,0.00024799,2]
[393552387,1762793447188,-2409.87,0.00024799,2]
[393552388,1762793447198,-2409.87,0.00024799,2]
[393552389,1762793447207,-2409.87,0.00024799,2]
[393552390,1762793447216,-2409.87,0.00024799,2]
[393552391,1762793447226,-2409.87,0.00024799,2]
[393552392,1762793447235,-2409.87,0.00024799,2]
[393552393,1762793447249,-2409.87,0.00024799,2]
[393552394,1762793447259,-2409.87,0.00024799,2]
[393552395,1762793447269,-2409.87,0.00024799,2]
[393552396,1762793447278,-2409.87,0.00024799,2]
[393552397,1762793447288,-2409.87,0.00024799,2]
[393552398,1762793447298,-2409.87,0.00024799,2]
[393552399,1762793447307,-2409.87,0.00024799,2]
[393552400,1762793447316,-2409.87,0.00024799,2]
[393552401,1762793447328,-2409.87,0.00024799,2]
[393552402,1762793447338,-2409.87,0.00024799,2]
[393552403,1762793447348,-2409.87,0.00024799,2]
[393552404,1762793447358,-2409.87,0.00024799,2]
[393552405,1762793447367,-2409.87,0.00024799,2]
[393552406,1762793447377,-2409.9,0.00024799,2]
[393552407,1762793447386,-163.39,0.000248,7]
[393552408,1762793447395,-1317.1,0.000248,7]
[393552409,1762793447405,-155.238275,0.000248,2]
[393552410,1762793447414,-209910.140492,0.000248,2]
[393552411,1762793447424,-200.35,0.000248,2]
[393552412,1762793447433,-200.35,0.000248,2]
[393552413,1762793447442,-150.0,0.00024873,2]
[393552414,1762793447453,-500.0,0.00024873,2]
[393552415,1762793447462,-381.71899204,0.00024885,2]
[393552416,1762793447472,-500.0,0.00024899,2]
[393552417,1762793447482,-500.0,0.00024899,2]
[393552418,1762793447492,-156.5073693,0.00024899,2]
[393552419,1762793447501,-2947.45,0.00024899,2]
[393552420,1762793447510,-2947.45,0.00024899,2]
[393552421,1762793447519,-2947.45,0.00024899,2]
[393552422,1762793447528,-2947.45,0.00024899,2]
[393552423,1762793447538,-2947.45,0.00024899,2]
[393552424,1762793447547,-2947.45,0.00024899,2]
[393552425,1762793447556,-2947.45,0.00024899,2]
[393552426,1762793447566,-151.0,0.000249,7]
[393552427,1762793447576,-142466.67254487,0.000249,2]
[393552430,1762793480412,906.4778728,0.00032877,120]
[393552436,1762793514013,406.92393221,0.00032876,120]
[393552438,1762793526412,200.0,0.00032,120]
[393552472,1762793543220,484.0,0.00032,120]
[393552480,1762793580353,296.44,0.00027397,120]
[393552487,1762793663689,186.10225414,0.000328,120]
[393552509,1762793706834,168.5729625,0.00030137,120]
[393552513,1762793728303,162.6230924,0.000328,120]
[393552514,1762793758872,376.26975956,0.000328,120]
[393552515,1762793780239,5000.0,0.00019616,4]
[393552566,1762794044515,162.6230924,0.000328,120]
[393552570,1762794076165,301.01580765,0.000328,120]
[393552577,1762794123002,512.92,0.00017,120]
[393552578,1762794129329,906.4778728,0.00032877,120]
[393552598,1762794179962,355.905673,0.00013699,2]
[393552613,1762794358953,10000.0,0.00037024,20]
[393552614,1762794359294,162.62309241,0.000328,120]
[393552616,1762794385407,5000.0,0.0001866,2]
[393552617,1762794392798,240.81264612,0.000328,120]
[393552645,1762794451085,-518.94492388,0.00018851,2]
[393552659,1762794547663,-1745.59291536,0.00018851,2]
[393552660,1762794547684,-150.00244751,0.00019041,2]
[393552661,1762794547704,-349.94099666,0.00019089,2]
[393552663,1762794553103,-55.16319871,0.00019089,2]
[393552664,1762794553125,-355.905673,0.00020187,2]
[393552665,1762794553147,-177.00288807,0.00021041,2]
[393552666,1762794553167,-382.26544022,0.00021443,2]
[393552667,1762794567716,906.5,0.00032876,120]
[393552670,1762794622064,924.1911871,0.00032876,120]
[393552701,1762794631691,-22.83875515,0.00021443,2]
[393552702,1762794631701,-500.0,0.00022922,2]
[393552705,1762794631812,-204.00332862,0.00023041,2]
[393552706,1762794631858,-405.10419537,0.00023796,2]
[393552707,1762794631868,-399.99776637,0.00023821,2]
[393552708,1762794631877,-413.0,0.00024604,2]
[393552709,1762794631887,-500.0,0.00024696,2]
[393552710,1762794631896,-155.238275,0.000247,2]
[393552711,1762794631905,-300.0,0.00024772,2]
[393552712,1762794631915,-282.0,0.00024772,2]
[393552713,1762794631924,-1200.0,0.00024772,2]
[393552714,1762794631933,-589.39150552,0.00024773,2]
[393552715,1762794631943,-257.89432662,0.00024785,2]
[393552716,1762794631952,-1125.52,0.0002479,3]
[393552717,1762794631962,-562.76,0.0002479,3]
[393552718,1762794631971,-281.38,0.0002479,3]
[393552719,1762794631980,-844.17,0.0002479,3]
[393552720,1762794631989,-777.22,0.0002479,3]
[393552721,1762794631998,-791.4,0.0002479,10]
[393552722,1762794632007,-500.0,0.00024798,2]
[393552723,1762794632017,-2119.28716837,0.00024798,2]
[393552724,1762794632028,-849.02283163,0.00024798,2]
[393552725,1762794632037,-83.88820511,0.00024799,2]
[393552726,1762794632048,-416.11179489,0.00024799,2]
[393552727,1762794632058,-191.75099633,0.00024799,2]
[393552728,1762794632068,-161.87,0.00024799,8]
[393552729,1762794632077,-234.03155433,0.00024799,2]
[393552740,1762794639794,-500.0,0.00024798,2]
[393552741,1762794639804,-557.20482149,0.00024798,2]
[393552742,1762794639814,-619.818572,0.00024798,2]
[393552743,1762794639823,-253.53508444,0.00024798,2]
[393552744,1762794639833,-306.76147266,0.00024798,2]
[393552745,1762794639846,-193.23852734,0.00024798,2]
[393552746,1762794639856,-500.0,0.00024798,2]
[393552747,1762794639866,-500.0,0.00024798,2]
[393552748,1762794639875,-500.0,0.00024798,2]
[393552749,1762794639884,-500.0,0.00024798,2]
[393552750,1762794639893,-394.30147266,0.00024798,2]
[393552764,1762794673056,162.62309241,0.000328,120]
[393552768,1762794709503,192.6501169,0.000328,120]
[393552824,1762794988097,162.6230924,0.000328,120]
[393552826,1762795025451,192.65011689,0.000328,120]
[393552915,1762795340475,192.6501169,0.000328,120]
[393553108,1762795644090,-168.00249887,0.00019089,2]
[393553112,1762795655477,192.65011689,0.000328,120]
[393553179,1762795712444,4670.23630384,0.00037049,30]
[393553182,1762795717887,5672.39189709,0.00037049,30]
[393553183,1762795719092,2155.96807567,0.00037049,120]
[393553279,1762795745089,-882.0,0.00019089,2]
[393553282,1762795755090,-313.78971409,0.00019089,2]
[393553283,1762795755111,-327.90154952,0.00019089,2]
[393553284,1762795755133,-150.0,0.00019691,2]
[393553285,1762795755152,-327.90154952,0.00021418,2]
[393553286,1762795755174,-76.16398687,0.00021691,2]
[393553359,1762795831899,-100.83601313,0.00021691,2]
[393553360,1762795831908,-213.27478222,0.00022382,2]
[393553361,1762795832023,-240.29810711,0.00022382,2]
[393553362,1762795832032,-399.99776637,0.0002254,2]
[393553363,1762795832041,-403.48159827,0.0002275,2]
[393553364,1762795832053,-607.14104023,0.0002275,2]
[393553365,1762795832067,-295.15245611,0.0002356,2]
[393553367,1762795832077,-151.0,0.00023623,2]
[393553369,1762795832086,-304.29441582,0.00023623,2]
[393553372,1762795832097,-204.0,0.00023691,2]
[393553375,1762795832106,-327.90154952,0.00023747,2]
[393553378,1762795832116,-300.0,0.00024141,2]
[393553380,1762795832125,-300.0,0.00024141,2]
[393553382,1762795832135,-300.0,0.00024141,2]
[393553384,1762795832144,-300.0,0.00024141,2]
[393553386,1762795832153,-1200.0,0.00024141,2]
[393553388,1762795832162,-36683.15759186,0.00024142,2]
[393553390,1762795832173,-871.21080004,0.00024142,2]
[393553392,1762795832184,-712.62497247,0.00024142,2]
[393553424,1762795837863,-500.0,0.00024141,2]
[393553426,1762795837872,-500.0,0.00024141,2]
[393553428,1762795837882,-500.0,0.00024141,2]
[393553430,1762795837891,-500.0,0.00024141,2]
[393553432,1762795837901,-500.0,0.00024141,2]
[393553434,1762795837911,-500.0,0.00024141,2]
[393553436,1762795837920,-500.0,0.00024141,2]
[393553438,1762795837930,-500.0,0.00024141,2]
[393553440,1762795837939,-500.0,0.00024141,2]
[393553442,1762795837949,-500.0,0.00024141,2]
[393553444,1762795837959,-500.0,0.00024141,2]
[393553446,1762795837968,-500.0,0.00024141,2]
[393553448,1762795837977,-466.67472745,0.00024141,2]
[393553450,1762795837987,-500.0,0.00024141,2]
[393553452,1762795837996,-500.0,0.00024141,2]
[393553454,1762795838006,-500.0,0.00024141,2]
[393553456,1762795838015,-500.0,0.00024141,2]
[393553458,1762795838025,-318.99196143,0.00024141,2]
[393553568,1762795839990,-181.00803857,0.00024141,2]
[393553569,1762795840000,-500.0,0.00024141,2]
[393553570,1762795840010,-500.0,0.00024141,2]
[393553571,1762795840020,-500.0,0.00024141,2]
[393553572,1762795840029,-174.70624202,0.00024141,2]
[393553573,1762795840039,-200.0,0.00024141,2]
[393553574,1762795840050,-250.0,0.00024141,2]
[393553575,1762795840062,-500.0,0.00024141,2]
[393553576,1762795840073,-7666.18154388,0.00024142,2]
[393554184,1762795968877,192.6501169,0.000328,120]
[393554185,1762796016047,-200.0,0.000334,120]
[393554186,1762796016154,-285.0,0.00033973,120]
[393554187,1762796016178,-200.0,0.00034,120]
[393554188,1762796016201,-151.0,0.00035,120]
[393554189,1762796016221,-363.0,0.00035,120]
[393554190,1762796016493,-294.29372,0.00035,120]
[393554191,1762796016539,-342.70628,0.00035,120]
[393554192,1762796016562,-656.29372,0.00035068,120]
[393554193,1762796016610,-342.70628,0.00035068,120]
[393554194,1762796016633,-180.16372,0.000351,120]
[393554195,1762796016681,-114.13,0.000351,120]
[393554196,1762796016705,-312.0,0.00035973,120]
[393554197,1762796016726,-200.0,0.00036,120]
[393554198,1762796016747,-522.87,0.00036073,120]
[393554199,1762796016769,-416.16405482,0.00036164,120]
[393554200,1762796016820,-200.0,0.00036164,120]
[393554201,1762796016928,-200.0,0.00036164,120]
[393554202,1762796016981,-182.83594518,0.00036164,120]
[393554203,1762796017003,-20.57645943,0.00036211,120]
[393554204,1762796017055,-179.42354057,0.00036211,120]
[393554205,1762796017077,-151.0,0.000364,120]
[393554206,1762796017098,-200.0,0.00036466,120]
[393554207,1762796017123,-203.41240461,0.00036999,120]
[393554208,1762796017144,-161.25982057,0.00037,120]
[393554209,1762796017166,-266.16405482,0.00037,120]
[393554211,1762796041426,366.0,0.00035691,120]
[393554216,1762796059681,662.98675205,0.00035068,120]
[393554233,1762796196403,150.0,0.00037048,120]
[393554235,1762796211327,336.01324795,0.00035068,120]
[393554241,1762796294536,285.0,0.00033839,120]
[393554277,1762796613273,285.0,0.00033772,120]
[393554295,1762796829102,-301.80454504,0.00019089,2]
[393554296,1762796829127,-150.0,0.00023772,2]
[393554297,1762796829151,-301.80454504,0.00023789,2]
[393554299,1762796829173,-3563.82509175,0.00024142,2]
[393554300,1762796829195,-60.2905377,0.000244,2]
[393554400,1762796930180,285.0,0.00034387,120]
[393554401,1762796985862,296.0,0.00035,120]
[393554402,1762797011355,139.0,0.000334,120]
[393554403,1762797011377,34.99776637,0.000334,120]
[393554493,1762797032233,-210.50368111,0.000243,4]
[393554496,1762797032244,-210.5036811,0.00024373,4]
[393554514,1762797032341,-150.0,0.00024387,2]
[393554516,1762797032351,-225.45089958,0.000244,2]
[393555267,1762797043212,-164.65035922,0.00019089,2]
[393555269,1762797043224,-167.47677078,0.000244,2]
[393555271,1762797043234,-300.0,0.00024472,2]
[393555273,1762797043244,-300.0,0.00024472,2]
[393555275,1762797043255,-91.27671784,0.00024472,2]
[393555280,1762797043288,-63.82727264,0.00024472,2]
[393557250,1762797564187,165.00223363,0.00033285,120]
[393557258,1762797625255,320.315105,0.00013699,2]
[393557260,1762797708852,508.44390174,0.00032,120]
[393557273,1762797990847,9999.999999,0.00032,120]
[393557274,1762798028127,-233.27531393,0.00019089,2]
[393557275,1762798028148,-320.315105,0.00020187,2]
[393557276,1762798028169,-150.0,0.00020194,2]
[393557277,1762798028188,-201.23248451,0.000202,2]
[393557279,1762798162107,-518.94492388,0.00019998,2]
[393557280,1762798162129,-381.27841571,0.000202,2]
[393557281,1762798162150,-329.42784572,0.00021001,2]
[393557282,1762798162170,-214.36783384,0.00021001,2]
[393557283,1762798162190,-273.03599269,0.00021261,2]